bitfinex-derivatives/quotes_BTCF0:USTF0_20250822
["timestamp","ask_amount","ask_price","bid_price","bid_amount"]
[1755825171142,0.03642,112400.0,112390.0,1.57249652]
[1755825171347,0.02683,112400.0,112390.0,1.57249652]
[1755825172054,0.002,112400.0,112390.0,1.57329652]
[1755825172644,0.002,112400.0,112390.0,1.57249652]
[1755825172840,0.002,112400.0,112390.0,1.65238471]
[1755825173346,0.03029,112410.0,112400.0,0.0052]
[1755825173541,0.0062,112410.0,112400.0,1.00212862]
[1755825173753,0.0062,112410.0,112400.0,1.08201681]
[1755825174152,0.0042,112410.0,112400.0,1.09875913]
[1755825174545,0.0042,112410.0,112400.0,1.01887094]
[1755825174745,0.0102,112410.0,112400.0,1.01887094]
[1755825174948,0.0102,112410.0,112400.0,0.73732862]
[1755825175153,0.006,112410.0,112400.0,0.73732862]
[1755825175350,0.0108,112410.0,112400.0,0.73732862]
[1755825175552,0.0108,112410.0,112400.0,1.01887094]
[1755825177749,0.0108,112410.0,112400.0,1.21887094]
[1755825179154,0.0108,112410.0,112400.0,1.59632974]
[1755825180353,0.0108,112410.0,112400.0,2.09632974]
[1755825181156,0.24544331,112420.0,112410.0,0.0889784]
[1755825181347,0.24544331,112420.0,112410.0,3.65287552]
[1755825182457,0.14806541,112420.0,112410.0,4.15387552]
[1755825183459,0.14406541,112420.0,112410.0,4.15387552]
[1755825183660,0.14128541,112420.0,112410.0,4.15387552]
[1755825183855,0.25564,112450.0,112440.0,0.0889546]
[1755825184153,0.23649092,112450.0,112440.0,2.21007924]
[1755825184553,0.26933092,112450.0,112440.0,2.21007924]
[1755825184755,0.28430092,112450.0,112440.0,1.92853692]
[1755825184954,0.12009,112450.0,112440.0,1.92853692]
[1755825185256,0.12309,112450.0,112440.0,2.0017036]
[1755825186260,0.12309,112450.0,112440.0,2.06541824]
[1755825186656,0.12309,112450.0,112440.0,2.33101824]
[1755825187560,0.09025,112450.0,112440.0,2.33101824]
[1755825187748,0.12309,112450.0,112440.0,2.61256056]
[1755825187951,0.12389,112450.0,112440.0,1.49457854]
[1755825188156,0.12389,112450.0,112440.0,2.04883622]
[1755825188351,0.12389,112450.0,112440.0,2.24294364]
[1755825188551,0.12389,112450.0,112440.0,2.179229]
[1755825188746,0.12389,112450.0,112440.0,2.2681843]
[1755825188951,0.12389,112450.0,112440.0,2.33189894]
[1755825189151,0.12389,112450.0,112440.0,2.24294364]
[1755825189360,0.12389,112450.0,112440.0,2.179229]
[1755825189859,0.12389,112450.0,112440.0,1.63220668]
[1755825190855,0.12389,112450.0,112440.0,1.63184668]
[1755825191057,0.40543232,112450.0,112440.0,1.63184668]
[1755825191463,0.12389,112450.0,112440.0,1.63184668]
[1755825192471,0.12389,112450.0,112440.0,0.79476668]
[1755825192769,0.12749,112450.0,112440.0,1.63164668]
[1755825194970,0.12669,112450.0,112440.0,0.79476668]
[1755825195161,0.40903232,112450.0,112440.0,1.19804]
[1755825196169,0.40903232,112450.0,112440.0,0.3618]
[1755825196468,0.40903232,112450.0,112440.0,1.19776]
[1755825196769,0.40903232,112450.0,112440.0,0.3618]
[1755825197066,0.76983232,112450.0,112440.0,0.8368]
[1755825203665,0.76903232,112450.0,112440.0,0.001]
[1755825209277,0.12669,112450.0,112440.0,0.001]
[1755825209475,0.40823232,112450.0,112440.0,0.3618]
[1755825209675,0.40823232,112450.0,112440.0,0.001]
[1755825209876,0.40823232,112450.0,112440.0,0.3618]
[1755825210071,0.40823232,112450.0,112440.0,0.001]
[1755825210372,0.58803232,112450.0,112440.0,0.001]
[1755825211978,0.30649,112450.0,112440.0,0.001]
[1755825212179,0.58803232,112450.0,112440.0,0.3618]
[1755825212779,0.58803232,112450.0,112440.0,0.001]
[1755825213369,0.58803232,112450.0,112440.0,0.3618]
[1755825213577,0.58803232,112450.0,112440.0,0.001]
[1755825213781,0.40823232,112450.0,112440.0,0.3618]
[1755825214081,0.40823232,112450.0,112440.0,0.001]
[1755825214579,0.40823232,112450.0,112440.0,0.3618]
[1755825215473,0.40823232,112450.0,112440.0,0.001]
[1755825216081,0.40823232,112450.0,112440.0,0.3618]
[1755825216277,0.12669,112450.0,112440.0,0.79601256]
[1755825217279,0.12669,112450.0,112440.0,0.42551464]
[1755825218778,0.12669,112450.0,112440.0,0.3618]
[1755825220684,0.12469,112450.0,112440.0,0.3618]
[1755825220984,0.40623232,112450.0,112440.0,0.3618]
[1755825222088,0.40623232,112450.0,112440.0,0.44154972]
[1755825222581,0.09185,112450.0,112440.0,0.81204764]
[1755825222787,0.12614,112450.0,112440.0,0.81204764]
[1755825224088,0.12614,112450.0,112440.0,0.79628498]
[1755825224388,0.12614,112450.0,112440.0,0.73229792]
[1755825224778,0.12614,112450.0,112440.0,0.64334232]
[1755825225078,0.12614,112450.0,112440.0,0.3618]
[1755825225277,0.12614,112450.0,112440.0,0.64334232]
[1755825225882,0.12614,112450.0,112440.0,0.3618]
[1755825226284,0.12614,112450.0,112440.0,0.42579075]
[1755825226488,0.12614,112450.0,112440.0,0.3618]
[1755825227489,0.40768232,112450.0,112440.0,1.25466601]
[1755825227789,0.12614,112450.0,112440.0,0.89386601]
[1755825228089,0.40768232,112450.0,112440.0,0.89386601]
[1755825228681,0.40768232,112450.0,112440.0,1.25466601]
[1755825229692,0.12614,112450.0,112440.0,1.25466601]
[1755825229988,0.40768232,112450.0,112440.0,1.25466601]
[1755825230192,0.40768232,112450.0,112440.0,0.89386601]
[1755825230384,0.40768232,112450.0,112440.0,1.25466601]
[1755825232093,0.12614,112450.0,112440.0,1.25466601]
[1755825232392,0.40768232,112450.0,112440.0,1.25466601]
[1755825234194,0.40768232,112450.0,112440.0,1.27042972]
[1755825235999,0.12614,112450.0,112440.0,1.27042972]
[1755825236198,0.40768232,112450.0,112440.0,1.27042972]
[1755825238286,0.37339232,112450.0,112440.0,1.27042972]
[1755825238491,0.40634232,112450.0,112440.0,1.27042972]
[1755825240001,0.40634232,112450.0,112440.0,1.19068]
[1755825241009,0.40634232,112450.0,112440.0,0.3618]
[1755825241197,0.40634232,112450.0,112440.0,1.1898]
[1755825242410,0.40634232,112450.0,112440.0,1.18948]
[1755825242711,0.40634232,112450.0,112440.0,0.3618]
[1755825242902,0.40634232,112450.0,112440.0,1.18928]
[1755825243102,0.1248,112450.0,112440.0,1.18928]
[1755825243402,0.40634232,112450.0,112440.0,1.18928]
[1755825243701,0.40634232,112450.0,112440.0,1.26902972]
[1755825243898,0.03828,112450.0,112440.0,1.55057204]
[1755825244103,0.02769,112450.0,112440.0,1.54957204]
[1755825244402,0.02869,112450.0,112440.0,1.55157204]
[1755825244810,0.02769,112450.0,112440.0,1.54957204]
[1755825245002,0.02869,112450.0,112440.0,1.64252764]
[1755825245202,0.02869,112450.0,112440.0,1.55357204]
[1755825245508,0.02869,112450.0,112440.0,1.47382232]
[1755825245699,0.02869,112450.0,112440.0,1.56277792]
[1755825246300,0.02869,112450.0,112440.0,1.64252764]
[1755825247311,0.0046,112450.0,112440.0,1.64252764]
[1755825247511,0.0046,112450.0,112440.0,1.92486996]
[1755825248011,0.0046,112450.0,112440.0,1.84512024]
[1755825249221,0.0046,112450.0,112440.0,1.95689272]
[1755825250424,0.0046,112450.0,112440.0,1.84512024]
[1755825251115,0.0046,112450.0,112440.0,1.95689272]
[1755825252320,0.0046,112450.0,112440.0,2.65689272]
[1755825255022,0.0046,112450.0,112440.0,1.62861272]
[1755825255211,0.0046,112450.0,112440.0,2.45601272]
[1755825255621,0.0046,112450.0,112440.0,1.62861272]
[1755825255826,0.02882,112450.0,112440.0,2.45601272]
[1755825256327,0.0046,112450.0,112440.0,2.45601272]
[1755825258930,0.0046,112450.0,112440.0,2.72161272]
[1755825264033,0.02749,112450.0,112440.0,2.72161272]
[1755825264332,0.02749,112450.0,112440.0,1.89421272]
[1755825264533,0.12156,112450.0,112440.0,2.72145272]
[1755825264732,0.12156,112450.0,112440.0,2.22145272]
[1755825264933,0.08929,112450.0,112440.0,1.39421272]
[1755825265135,0.12156,112450.0,112440.0,2.22145272]
[1755825265434,0.12156,112450.0,112440.0,2.10968024]
[1755825267037,0.10801,112450.0,112440.0,2.10968024]
[1755825267436,0.12156,112450.0,112440.0,2.10968024]
[1755825269741,0.07574,112450.0,112440.0,2.10968024]
[1755825270937,0.10801,112450.0,112440.0,2.10968024]
[1755825271741,0.12156,112450.0,112440.0,2.10968024]
[1755825274544,0.12156,112450.0,112440.0,2.22145272]
[1755825275545,0.10801,112450.0,112440.0,2.22145272]
[1755825275739,0.07574,112450.0,112440.0,2.22145272]
[1755825275942,0.02749,112450.0,112440.0,2.22145272]
[1755825277344,0.02749,112450.0,112440.0,2.10968024]
[1755825280445,0.00027684,112450.0,112440.0,2.10968024]
[1755825280646,0.00027684,112450.0,112440.0,2.13230024]
[1755825280944,0.19157684,112450.0,112440.0,2.13230024]
[1755825282347,0.1913,112450.0,112440.0,2.13230024]
[1755825284550,0.21435,112450.0,112440.0,2.13230024]
[1755825284748,0.30826,112450.0,112440.0,1.77767232]
[1755825284943,0.30826,112450.0,112440.0,1.8897322]
[1755825285848,0.30826,112450.0,112440.0,1.0627322]
[1755825286054,0.30826,112450.0,112440.0,1.8897322]
[1755825286447,0.30826,112450.0,112440.0,1.0401122]
[1755825286753,0.30826,112450.0,112440.0,1.8671122]
[1755825288552,0.30826,112450.0,112440.0,1.77767232]
[1755825290054,0.30826,112450.0,112440.0,1.8897322]
[1755825291656,0.30826,112450.0,112440.0,1.60818988]
[1755825291854,0.30826,112450.0,112440.0,1.8897322]
[1755825292854,0.30826,112450.0,112440.0,1.77767232]
[1755825296450,0.30826,112450.0,112440.0,1.8897322]
[1755825296851,0.30826,112450.0,112440.0,1.60818988]
[1755825297154,0.30826,112450.0,112440.0,1.77767232]
[1755825299659,0.58980232,112450.0,112440.0,0.66913]
[1755825299959,0.58980232,112450.0,112440.0,1.66538993]
[1755825300257,0.58980232,112450.0,112440.0,1.57595005]
[1755825300559,0.30826,112450.0,112440.0,1.31035005]
[1755825300754,0.58980232,112450.0,112440.0,1.28773005]
[1755825301558,0.58980232,112450.0,112440.0,1.20775]
[1755825302058,0.30826,112450.0,112440.0,1.23037]
[1755825304363,0.58980232,112450.0,112440.0,1.23037]
[1755825304564,0.58980232,112450.0,112440.0,1.31035005]
[1755825304956,0.58980232,112450.0,112440.0,1.23037]
[1755825306361,0.58980232,112450.0,112440.0,0.86957]
[1755825306565,0.58980232,112450.0,112440.0,1.23033]
[1755825311163,0.30826,112450.0,112440.0,1.23033]
[1755825311467,0.58980232,112450.0,112440.0,1.23033]
[1755825311965,0.27599,112450.0,112440.0,1.23033]
[1755825312162,0.3075,112450.0,112440.0,1.23033]
[1755825312366,0.21419,112450.0,112440.0,2.02709306]
[1755825312567,0.1913,112450.0,112440.0,1.96315039]
[1755825313268,0.16868,112450.0,112440.0,1.96315039]
[1755825313667,0.16868,112450.0,112440.0,1.88317034]
[1755825315264,0.16868,112450.0,112440.0,1.99523022]
[1755825316969,0.16868,112450.0,112440.0,1.88317034]
[1755825318970,0.16868,112450.0,112440.0,2.49523022]
[1755825319371,0.03188,112480.0,112460.0,0.2668003]
[1755825319574,0.02251,112480.0,112470.0,1.91867432]
[1755825319773,0.02251,112480.0,112470.0,2.28006716]
[1755825320272,0.02611,112480.0,112470.0,2.20021664]
[1755825320470,0.02611,112480.0,112470.0,1.91867432]
[1755825320672,0.02711,112480.0,112470.0,1.91867432]
[1755825320973,0.02711,112480.0,112470.0,2.20021664]
[1755825321172,0.02711,112480.0,112470.0,2.21114349]
[1755825321968,0.0046,112480.0,112470.0,2.21114349]
[1755825322167,0.0066,112480.0,112470.0,2.29199401]
[1755825323174,0.0036,112480.0,112470.0,2.29099401]
[1755825323473,0.02711,112480.0,112470.0,2.29199401]
[1755825323868,0.02711,112480.0,112470.0,2.29399401]
[1755825324367,0.02711,112480.0,112470.0,2.01245169]
[1755825324770,0.0046,112480.0,112470.0,2.01245169]
[1755825324967,0.0046,112480.0,112470.0,2.29399401]
[1755825328470,0.0046,112480.0,112470.0,2.21414349]
[1755825328667,0.0046,112480.0,112470.0,2.2937596]
[1755825328868,0.0046,112480.0,112470.0,2.29375832]
[1755825329069,0.0046,112480.0,112470.0,2.21414349]
[1755825329371,0.0046,112480.0,112470.0,3.05933105]
[1755825329579,0.0046,112480.0,112470.0,2.71494349]
[1755825329874,0.04801,112510.0,112490.0,0.2786934]
[1755825329875,0.01448,112510.0,112490.0,0.2786934]
[1755825330172,0.19406,112520.0,112510.0,0.0046]
[1755825330372,0.11564,112520.0,112510.0,0.74319272]
[1755825330581,0.11564,112520.0,112510.0,0.80686141]
[1755825330970,0.07842,112530.0,112510.0,0.98465851]
[1755825331171,0.03041,112530.0,112520.0,1.56207482]
[1755825331876,0.05292,112530.0,112520.0,1.56207482]
[1755825332074,0.04355,112530.0,112520.0,1.56207482]
[1755825332379,0.04355,112530.0,112520.0,1.47318232]
[1755825332567,0.05292,112530.0,112520.0,1.47318232]
[1755825333078,0.08645,112530.0,112520.0,1.47318232]
[1755825333274,0.11694,112530.0,112520.0,1.47318232]
[1755825333478,0.11694,112530.0,112520.0,1.54377588]
[1755825333680,0.12294,112530.0,112520.0,1.63366838]
[1755825334180,0.07493,112530.0,112520.0,1.63366838]
[1755825334679,0.05892,112530.0,112520.0,1.63366838]
[1755825335882,0.006,112530.0,112520.0,1.63366838]
[1755825336178,0.02851,112530.0,112520.0,1.63366838]
[1755825336579,0.04955,112530.0,112520.0,1.63366838]
[1755825338481,0.02851,112530.0,112520.0,1.63366838]
[1755825338981,0.006,112530.0,112520.0,2.1808107]
[1755825339172,0.02251,112540.0,112530.0,0.0962347]
[1755825339368,0.02251,112540.0,112530.0,1.02471934]
[1755825339583,0.02251,112540.0,112530.0,1.29031934]
[1755825339777,0.02251,112540.0,112530.0,2.98075934]
[1755825340383,0.02451,112540.0,112530.0,2.98175934]
[1755825342479,0.02451,112540.0,112530.0,3.80751934]
[1755825342876,0.002,112540.0,112530.0,3.54191934]
[1755825347380,0.02251,112550.0,112530.0,3.54191934]
[1755825347381,0.02251,112550.0,112530.0,3.72048344]
[1755825347581,0.0311,112560.0,112540.0,1.00518742]
[1755825347780,0.0311,112560.0,112550.0,1.84291364]
[1755825347986,0.0311,112560.0,112550.0,1.56137132]
[1755825348480,0.09334,112570.0,112560.0,0.1008111]
[1755825348690,0.09334,112570.0,112560.0,0.74315342]
[1755825349191,0.09334,112580.0,112570.0,0.0962032]
[1755825349385,0.06092,112580.0,112570.0,1.57934771]
[1755825349590,0.08575,112580.0,112570.0,1.57934771]
[1755825350186,0.07196,112580.0,112570.0,1.57934771]
[1755825350385,0.02483,112580.0,112570.0,1.57934771]
[1755825351182,0.01379,112590.0,112580.0,0.0961953]
[1755825351183,0.07025,112590.0,112580.0,0.0961953]
[1755825351382,0.02483,112590.0,112580.0,0.74313762]
[1755825351689,0.05646,112590.0,112580.0,0.74313762]
[1755825353088,0.06246,112590.0,112580.0,0.74413762]
[1755825354184,0.09488,112590.0,112580.0,0.74413762]
[1755825354485,0.03083,112590.0,112580.0,0.74413762]
[1755825354892,0.03083,112590.0,112580.0,1.02567994]
[1755825355785,0.03083,112590.0,112580.0,1.09792035]
[1755825356993,0.03083,112590.0,112580.0,2.78748035]
[1755825357986,0.03083,112590.0,112580.0,3.33113803]
[1755825358494,0.05256,112590.0,112580.0,3.04959571]
[1755825358694,0.05256,112590.0,112580.0,3.33113803]
[1755825358888,0.05256,112590.0,112580.0,3.33105803]
[1755825359394,0.03083,112590.0,112580.0,3.33105803]
[1755825359693,0.05256,112590.0,112580.0,3.33105803]
[1755825359892,0.03083,112590.0,112580.0,3.33105803]
[1755825360098,0.05256,112590.0,112580.0,3.33105803]
[1755825360684,0.06246,112590.0,112580.0,3.33105803]
[1755825361002,0.09175,112590.0,112580.0,3.23757273]
[1755825361180,0.12417,112590.0,112580.0,3.23757273]
[1755825361494,0.12417,112590.0,112580.0,2.41249273]
[1755825361790,0.11817,112590.0,112580.0,3.23014273]
[1755825363693,0.08575,112590.0,112580.0,3.31898803]
[1755825363896,0.03473,112590.0,112580.0,3.32358803]
[1755825364093,0.02483,112590.0,112580.0,3.32358803]
[1755825364980,0.07898,112590.0,112580.0,3.04204571]
[1755825365183,0.04656,112590.0,112580.0,3.32358803]
[1755825365394,0.11817,112590.0,112580.0,3.50034273]
[1755825365793,0.11817,112590.0,112580.0,3.58918803]
[1755825366395,0.11817,112590.0,112580.0,3.21880041]
[1755825366690,0.11817,112590.0,112580.0,2.38920041]
[1755825366904,0.11817,112590.0,112580.0,3.21408041]
[1755825367890,0.11817,112590.0,112580.0,3.49562273]
[1755825369993,0.11817,112590.0,112580.0,3.30292581]
[1755825370199,0.11817,112590.0,112580.0,3.49562273]
[1755825370600,0.11817,112590.0,112580.0,3.21408041]
[1755825371292,0.11817,112590.0,112580.0,2.94848041]
[1755825371488,0.11817,112590.0,112580.0,3.04192581]
[1755825371800,0.11817,112590.0,112580.0,3.32346813]
[1755825372702,0.12217,112590.0,112580.0,3.32346813]
[1755825373001,0.12217,112590.0,112580.0,3.31886813]
[1755825373700,0.12217,112590.0,112580.0,3.23002273]
[1755825374301,0.12217,112590.0,112580.0,3.31886813]
[1755825375003,0.12217,112590.0,112580.0,3.32346813]
[1755825375400,0.08975,112590.0,112580.0,3.32346813]
[1755825375602,0.02883,112590.0,112580.0,3.32346813]
[1755825375904,0.02883,112590.0,112580.0,3.38713682]
[1755825377307,0.02883,112590.0,112580.0,3.58906813]
[1755825377509,0.004,112590.0,112580.0,3.30752581]
[1755825377708,0.004,112590.0,112580.0,3.50022273]
[1755825377896,0.09,112590.0,112580.0,2.67534273]
[1755825378096,0.1242,112590.0,112580.0,3.55948239]
[1755825378301,0.1242,112590.0,112580.0,3.50022273]
[1755825378503,0.1242,112590.0,112580.0,3.58906813]
[1755825379913,0.09,112590.0,112580.0,3.58906813]
[1755825380613,0.09,112590.0,112580.0,1.89950813]
[1755825380808,0.09,112590.0,112580.0,1.81066273]
[1755825381012,0.1242,112590.0,112580.0,1.89024859]
[1755825381313,0.1242,112590.0,112580.0,0.78657627]
[1755825381501,0.1242,112590.0,112580.0,1.89295859]
[1755825382020,0.02696,112590.0,112580.0,1.98640429]
[1755825382712,0.04988,112590.0,112580.0,1.89755859]
[1755825383118,0.04988,112590.0,112580.0,1.63195859]
[1755825383310,0.04988,112590.0,112580.0,1.72080429]
[1755825383506,0.02696,112590.0,112580.0,1.72080429]
[1755825383715,0.004,112590.0,112580.0,2.00234661]
[1755825383908,0.02296,112600.0,112590.0,0.0894378]
[1755825384215,0.02296,112600.0,112590.0,1.01427244]
[1755825384416,0.02716,112600.0,112590.0,1.01427244]
[1755825385608,0.02816,112600.0,112590.0,1.01427244]
[1755825386817,0.0052,112600.0,112590.0,1.01427244]
[1755825387007,0.0046,112600.0,112590.0,1.27987244]
[1755825387208,0.0046,112600.0,112590.0,1.3594583]
[1755825387419,0.0046,112600.0,112590.0,1.27987244]
[1755825387912,0.0046,112600.0,112590.0,1.28067244]
[1755825388417,0.0046,112600.0,112590.0,1.47255751]
[1755825388617,0.0046,112600.0,112590.0,1.36049763]
[1755825389416,0.0046,112600.0,112590.0,1.35969763]
[1755825390816,0.02756,112600.0,112590.0,1.35969763]
[1755825391018,0.09018,112600.0,112590.0,0.98931751]
[1755825391318,0.12438,112600.0,112590.0,1.81411751]
[1755825391513,0.02756,112600.0,112590.0,2.09565983]
[1755825391707,0.0046,112600.0,112590.0,2.10467244]
[1755825391909,0.0046,112600.0,112590.0,2.18449763]
[1755825392113,0.0046,112600.0,112590.0,1.91889763]
[1755825393019,0.0046,112600.0,112590.0,1.95113232]
[1755825393411,0.0046,112600.0,112590.0,1.83907244]
[1755825393617,0.04588,112620.0,112600.0,0.3552984]
[1755825393916,0.05536,112620.0,112610.0,1.46706232]
[1755825394122,0.08956,112620.0,112610.0,1.46706232]
[1755825394418,0.11978,112620.0,112610.0,1.46706232]
[1755825394638,0.11978,112620.0,112610.0,1.53085522]
[1755825395227,0.40232232,112620.0,112610.0,0.8938329]
[1755825395816,0.40132232,112620.0,112610.0,0.8908329]
[1755825396016,0.40132232,112620.0,112610.0,1.53317522]
[1755825396017,0.11978,112620.0,112610.0,1.53317522]
[1755825396218,0.08558,112620.0,112610.0,1.53317522]
[1755825397124,0.11978,112620.0,112610.0,1.53317522]
[1755825398326,0.11978,112620.0,112610.0,1.53417522]
[1755825398914,0.11978,112620.0,112610.0,1.2526329]
[1755825399118,0.11978,112620.0,112610.0,0.8888329]
[1755825399326,0.11978,112620.0,112610.0,0.8908329]
[1755825399524,0.40132232,112620.0,112610.0,0.8908329]
[1755825399823,0.76212232,112620.0,112610.0,0.82704]
[1755825400827,0.76212232,112620.0,112610.0,0.002]
[1755825400828,0.96292232,112620.0,112610.0,0.002]
[1755825401120,1.04446464,112620.0,112610.0,0.82752]
[1755825401325,0.76292232,112620.0,112610.0,0.82752]
[1755825401520,1.04446464,112620.0,112610.0,0.79052]
[1755825401830,0.11978,112610.0,112600.0,1.09132]
[1755825402019,0.76212232,112610.0,112600.0,1.09132]
[1755825402527,0.76592232,112610.0,112600.0,1.09132]
[1755825403220,0.48438,112610.0,112600.0,1.09116]
[1755825403421,0.76592232,112610.0,112600.0,1.09116]
[1755825403928,0.76592232,112610.0,112600.0,0.82556]
[1755825406025,0.76592232,112610.0,112600.0,0.87914]
[1755825408933,0.45018,112610.0,112600.0,1.16068232]
[1755825409133,0.03624,112610.0,112600.0,1.16148232]
[1755825409532,0.03624,112610.0,112600.0,1.22527522]
[1755825409737,0.05783,112610.0,112600.0,0.9429329]
[1755825409945,0.05783,112610.0,112600.0,1.22447522]
[1755825410240,0.11831,112610.0,112600.0,1.22447522]
[1755825410543,0.0868,112610.0,112600.0,1.22447522]
[1755825410743,0.07286,112610.0,112600.0,1.22447522]
[1755825410944,0.02676,112610.0,112600.0,1.31330522]
[1755825411442,0.02676,112610.0,112600.0,1.58527522]
[1755825411749,0.39991232,112610.0,112600.0,0.9432529]
[1755825412146,0.11837,112610.0,112600.0,0.9432529]
[1755825412743,0.76071232,112610.0,112600.0,0.9116829]
[1755825412949,0.76071232,112610.0,112600.0,0.9434029]
[1755825413338,0.47917,112610.0,112600.0,0.87961]
[1755825413545,0.08686,112610.0,112600.0,1.16115232]
[1755825413847,0.02676,112610.0,112600.0,1.24998232]
[1755825414255,0.02676,112610.0,112600.0,1.61158232]
[1755825414438,0.0038,112610.0,112600.0,1.61158232]
[1755825414641,0.0038,112610.0,112600.0,1.69133776]
[1755825414856,0.0038,112610.0,112600.0,1.61158232]
[1755825415547,0.02325,112620.0,112600.0,1.78923422]
[1755825415745,0.02325,112620.0,112610.0,0.86472166]
[1755825415941,0.02325,112630.0,112620.0,0.0312]
[1755825416148,0.02325,112630.0,112620.0,1.22558085]
[1755825416455,0.02425,112630.0,112620.0,1.22558085]
[1755825417755,0.02425,112630.0,112620.0,1.31439505]
[1755825418347,0.02425,112630.0,112620.0,1.25056652]
[1755825419259,0.02425,112630.0,112620.0,1.16175232]
[1755825419455,0.04584,112630.0,112620.0,0.88021]
[1755825419656,0.05538,112630.0,112620.0,0.88021]
[1755825419856,0.08689,112630.0,112620.0,1.24101]
[1755825420159,0.10083,112630.0,112620.0,1.24101]
[1755825420348,0.11586,112630.0,112620.0,1.24101]
[1755825422754,0.11586,112630.0,112620.0,0.88021]
[1755825422960,0.11586,112630.0,112620.0,1.24101]
[1755825423958,0.11586,112630.0,112620.0,0.88021]
[1755825424159,0.08435,112630.0,112620.0,1.58634587]
[1755825424355,0.07041,112630.0,112620.0,1.58634587]
[1755825424863,0.11586,112630.0,112620.0,1.30480355]
[1755825425668,0.05538,112630.0,112620.0,1.30480355]
[1755825425864,0.03379,112630.0,112620.0,1.30480355]
[1755825426663,0.05538,112630.0,112620.0,1.30480355]
[1755825427066,0.07041,112630.0,112620.0,1.30480355]
[1755825427266,0.11586,112630.0,112620.0,1.30480355]
[1755825427466,0.11586,112630.0,112620.0,0.47836355]
[1755825427666,0.75820232,112630.0,112620.0,0.94288355]
[1755825429566,0.72669232,112630.0,112620.0,0.94288355]
[1755825429866,0.75820232,112630.0,112620.0,0.94288355]
[1755825430465,0.47666,112630.0,112620.0,0.94288355]
[1755825430769,0.44515,112630.0,112620.0,0.94288355]
[1755825431867,0.47666,112630.0,112620.0,0.94288355]
[1755825433161,0.04882,112630.0,112620.0,1.58522587]
[1755825433361,0.03379,112630.0,112620.0,1.58522587]
[1755825435461,0.05538,112630.0,112620.0,1.58522587]
[1755825435762,0.11586,112630.0,112620.0,1.30368355]
[1755825436270,0.39740232,112630.0,112620.0,1.30324355]
[1755825436456,0.75820232,112630.0,112620.0,0.08636355]
[1755825436769,0.75820232,112630.0,112620.0,0.87893]
[1755825438268,0.75820232,112630.0,112620.0,0.94272355]
[1755825438568,0.72669232,112630.0,112620.0,0.94272355]
[1755825438769,0.76089232,112630.0,112620.0,0.94272355]
[1755825440266,0.40009232,112630.0,112620.0,0.94272355]
[1755825440667,0.76089232,112630.0,112620.0,0.94272355]
[1755825440865,0.76089232,112630.0,112620.0,0.08636355]
[1755825441064,0.76089232,112630.0,112620.0,0.88867355]
[1755825441458,0.76089232,112630.0,112620.0,0.06379355]
[1755825444567,0.76389232,112630.0,112620.0,0.06379355]
[1755825445062,0.76389232,112630.0,112610.0,0.92027355]
[1755825445373,0.76246232,112620.0,112610.0,0.94187355]
[1755825445866,0.76246232,112620.0,112610.0,0.91067355]
[1755825446466,0.76246232,112620.0,112610.0,0.08539355]
[1755825446767,0.11042,112610.0,112600.0,0.91011355]
[1755825447066,0.11042,112610.0,112600.0,0.94131355]
[1755825447067,0.76246232,112610.0,112600.0,0.94131355]
[1755825447572,0.76246232,112610.0,112600.0,0.91011355]
[1755825448170,0.95736232,112610.0,112600.0,0.94131355]
[1755825448671,0.95736232,112610.0,112600.0,0.91011355]
[1755825448862,0.95736232,112610.0,112600.0,0.94131355]
[1755825450365,0.95736232,112610.0,112600.0,0.91011355]
[1755825450665,0.95736232,112610.0,112600.0,0.84632]
[1755825450866,0.95736232,112610.0,112600.0,0.87752]
[1755825451066,0.67582,112610.0,112600.0,0.87752]
[1755825451266,0.95736232,112610.0,112600.0,0.87752]
[1755825452866,0.88655232,112610.0,112590.0,0.06379355]
[1755825453064,0.76246232,112600.0,112590.0,0.91027355]
[1755825453469,0.76246232,112600.0,112590.0,0.94147355]
[1755825454276,0.76446232,112600.0,112590.0,0.87768]
[1755825455574,0.05777,112600.0,112590.0,0.87768]
[1755825455869,0.03462,112600.0,112590.0,0.87768]
[1755825456173,0.002,112600.0,112590.0,1.16002232]
[1755825456472,0.002,112600.0,112590.0,1.24886022]
[1755825456671,0.002,112600.0,112590.0,1.16002232]
[1755825457072,0.002,112600.0,112590.0,1.52082232]
[1755825457271,0.02492,112600.0,112590.0,1.52082232]
[1755825459474,0.002,112600.0,112590.0,1.58461587]
[1755825459775,0.21782,112610.0,112600.0,0.0508]
[1755825460075,0.02292,112610.0,112600.0,0.84572788]
[1755825460272,0.02339,112620.0,112600.0,0.84572788]
[1755825460474,0.06946,112620.0,112610.0,0.84648]
[1755825460672,0.06946,112620.0,112610.0,0.87568]
[1755825461074,0.26436,112620.0,112610.0,0.87568]
[1755825461479,0.26736,112620.0,112610.0,0.87568]
[1755825461978,0.23052,112620.0,112610.0,1.15722232]
[1755825462281,0.22082,112620.0,112610.0,1.15722232]
[1755825462471,0.28382,112620.0,112610.0,0.87568]
[1755825462670,0.31802,112620.0,112610.0,0.87568]
[1755825463084,0.31502,112620.0,112610.0,0.87568]
[1755825463277,0.31502,112620.0,112610.0,1.23648]
[1755825463478,0.31502,112620.0,112610.0,0.87568]
[1755825464176,0.59656232,112620.0,112610.0,0.93943556]
[1755825464479,0.95736232,112620.0,112610.0,0.93943556]
[1755825464876,0.95736232,112620.0,112610.0,0.91023556]
[1755825465084,0.95736232,112620.0,112610.0,0.93943556]
[1755825465678,0.59656232,112620.0,112610.0,0.93943556]
[1755825465986,0.31502,112620.0,112610.0,0.93943556]
[1755825468086,0.95736232,112620.0,112610.0,0.93943556]
[1755825468883,0.95736232,112620.0,112610.0,0.91023556]
[1755825469584,0.95736232,112620.0,112610.0,0.93943556]
[1755825470482,0.59656232,112620.0,112610.0,0.93943556]
[1755825470679,0.59656232,112620.0,112610.0,0.87568]
[1755825471079,0.28082,112620.0,112610.0,0.87568]
[1755825471286,0.21782,112620.0,112610.0,1.15722232]
[1755825472383,0.21782,112620.0,112610.0,0.84648]
[1755825472384,0.56040232,112620.0,112610.0,0.84648]
[1755825472578,0.95336232,112620.0,112610.0,0.84648]
[1755825472780,0.95336232,112620.0,112610.0,0.93953829]
[1755825472980,0.59256232,112620.0,112610.0,0.93953829]
[1755825473180,0.59256232,112620.0,112610.0,0.93953642]